bitfinex/quotes_BTCUSD_20250831
["timestamp","ask_amount","ask_price","bid_price","bid_amount"]
[1756652630949,0.0001428,108800.0,108790.0,2.29176701]
[1756652631156,0.0001428,108800.0,108790.0,2.29476701]
[1756652631634,0.0001428,108800.0,108790.0,2.29176701]
[1756652631846,0.0001428,108800.0,108790.0,2.69176701]
[1756652632535,0.0001428,108800.0,108790.0,2.17456925]
[1756652632765,0.0001428,108800.0,108790.0,2.68776701]
[1756652632980,0.0001428,108800.0,108790.0,2.69508701]
[1756652633405,0.19377432,108830.0,108820.0,0.60472856]
[1756652633406,0.01,108830.0,108820.0,0.60472856]
[1756652633639,0.01,108830.0,108820.0,0.93265857]
[1756652633837,0.01,108830.0,108820.0,0.37161857]
[1756652634083,0.01,108830.0,108820.0,0.55536757]
[1756652634963,0.01,108830.0,108820.0,0.56075757]
[1756652635392,0.01,108830.0,108820.0,0.56059757]
[1756652635610,0.01,108830.0,108820.0,0.56359757]
[1756652635814,0.01,108830.0,108820.0,0.56059757]
[1756652636247,0.01,108830.0,108820.0,0.40200757]
[1756652636494,0.01,108830.0,108820.0,0.56140757]
[1756652636495,0.52719776,108830.0,108820.0,0.56140757]
[1756652636704,0.71097061,108830.0,108820.0,0.37438857]
[1756652636910,0.50248844,108830.0,108820.0,0.53410857]
[1756652637122,0.50248844,108830.0,108820.0,0.35039883]
[1756652637338,0.50248844,108830.0,108820.0,0.34839883]
[1756652637579,0.50248844,108830.0,108820.0,0.34939883]
[1756652637836,0.50248844,108830.0,108820.0,0.38997044]
[1756652638061,0.50248844,108830.0,108820.0,0.57276018]
[1756652638511,0.50248844,108830.0,108820.0,0.39097044]
[1756652638730,0.50248844,108830.0,108820.0,0.23121044]
[1756652638943,0.50248844,108830.0,108820.0,0.21027162]
[1756652639159,0.50248844,108830.0,108820.0,0.32534001]
[1756652639358,0.50248844,108830.0,108820.0,0.32834001]
[1756652639575,0.50248844,108830.0,108820.0,0.32534001]
[1756652639980,0.18377285,108830.0,108820.0,0.50712975]
[1756652640200,0.18377285,108830.0,108820.0,0.50812975]
[1756652640410,0.70097061,108830.0,108820.0,0.51212975]
[1756652640646,0.1838384,108840.0,108820.0,0.51435975]
[1756652640870,0.70117651,108840.0,108830.0,0.18377285]
[1756652641744,0.70117651,108840.0,108820.0,0.51035975]
[1756652641956,0.70117651,108840.0,108830.0,0.18607001]
[1756652642182,0.70117651,108840.0,108830.0,0.34693285]
[1756652642617,0.18397875,108840.0,108830.0,0.16316]
[1756652642804,0.70117651,108840.0,108830.0,0.16316]
[1756652643030,0.70117651,108840.0,108830.0,0.34693285]
[1756652643464,0.70117651,108840.0,108830.0,0.16416]
[1756652643826,0.70117651,108840.0,108830.0,0.34793285]
[1756652644258,0.00022278,108840.0,108830.0,0.44414286]
[1756652644433,0.51742054,108840.0,108830.0,0.44414286]
[1756652644635,0.51742054,108840.0,108830.0,0.44630286]
[1756652645433,0.00022278,108840.0,108830.0,0.44630286]
[1756652645671,0.51742054,108840.0,108830.0,0.44630286]
[1756652647109,0.00022278,108840.0,108830.0,0.44630286]
[1756652647319,0.51742054,108840.0,108830.0,0.44630286]
[1756652647952,0.00022278,108840.0,108830.0,0.44630286]
[1756652648169,0.00022278,108840.0,108830.0,0.44638286]
[1756652648602,0.00022278,108840.0,108830.0,0.44634286]
[1756652649449,0.00022278,108840.0,108830.0,0.28614286]
[1756652649658,0.00022278,108840.0,108830.0,0.44638286]
[1756652649879,0.00022278,108840.0,108830.0,0.30708168]
[1756652650255,0.00022278,108840.0,108830.0,0.46728168]
[1756652650668,0.00022278,108840.0,108830.0,0.30708168]
[1756652650851,0.00022278,108840.0,108830.0,0.46728168]
[1756652651237,0.00022278,108840.0,108830.0,0.30708168]
[1756652651449,0.70117651,108840.0,108830.0,0.11791883]
[1756652651691,0.18397875,108840.0,108830.0,0.30169168]
[1756652651904,0.70117651,108840.0,108830.0,0.46189168]
[1756652652307,0.70117651,108840.0,108830.0,0.28075286]
[1756652652519,0.18397875,108840.0,108830.0,0.44095286]
[1756652652740,0.18397875,108840.0,108830.0,0.44418286]
[1756652653723,0.00022278,108840.0,108830.0,0.44418286]
[1756652654119,0.00022278,108840.0,108830.0,0.44634286]
[1756652659344,0.18397875,108840.0,108830.0,0.44610286]
[1756652661248,0.18397875,108840.0,108830.0,0.09698001]
[1756652661249,0.70117651,108840.0,108830.0,0.09698001]
[1756652661469,0.18397875,108840.0,108830.0,0.25686001]
[1756652661707,0.70117651,108840.0,108830.0,0.004]
[1756652661967,0.70117651,108840.0,108830.0,0.16392]
[1756652662635,0.70117651,108840.0,108830.0,0.16396]
[1756652663118,0.18397875,108840.0,108830.0,0.16396]
[1756652663352,0.70117651,108840.0,108830.0,0.16396]
[1756652663969,0.70117651,108840.0,108830.0,0.004]
[1756652664236,0.70117651,108840.0,108830.0,0.16396]
[1756652665050,0.70117651,108840.0,108830.0,0.004]
[1756652665255,0.70117651,108840.0,108830.0,0.16388]
[1756652665467,0.70117651,108840.0,108830.0,0.1638]
[1756652665667,0.70117651,108840.0,108830.0,0.004]
[1756652665871,0.70117651,108840.0,108830.0,0.1638]
[1756652668778,0.18397875,108840.0,108830.0,0.16683]
[1756652669027,0.70117651,108840.0,108830.0,0.16683]
[1756652673041,0.70117651,108840.0,108830.0,0.1638]
[1756652674705,1.04117651,108840.0,108830.0,0.004]
[1756652675184,0.52397875,108840.0,108830.0,0.004]
[1756652675427,1.04117651,108840.0,108830.0,0.004]
[1756652675673,0.52397875,108840.0,108830.0,0.004]
[1756652675939,1.20049651,108840.0,108830.0,0.004]
[1756652676155,1.71769427,108840.0,108830.0,0.004]
[1756652678499,0.68329875,108840.0,108830.0,0.004]
[1756652678711,1.71769427,108840.0,108830.0,0.004]
[1756652679143,1.55837427,108840.0,108830.0,0.004]
[1756652679361,1.71785427,108840.0,108830.0,0.004]
[1756652679605,0.68345875,108840.0,108830.0,0.004]
[1756652679827,1.71785427,108840.0,108830.0,0.004]
[1756652680040,0.68345875,108840.0,108830.0,0.004]
[1756652680239,1.71785427,108840.0,108830.0,0.004]
[1756652682657,1.81083428,108840.0,108830.0,0.004]
[1756652683169,1.88147428,108840.0,108830.0,0.004]
[1756652683389,0.18380663,108810.0,108800.0,0.0751443]
[1756652683603,0.86048439,108810.0,108800.0,0.0751443]
[1756652685667,0.86048439,108810.0,108800.0,0.0761143]
[1756652685871,0.86048439,108810.0,108800.0,0.004]
[1756652686073,1.20048439,108810.0,108800.0,0.004]
[1756652686436,1.20048439,108810.0,108800.0,0.001]
[1756652687284,1.2934644,108810.0,108800.0,0.001]
[1756652687510,1.2932644,108810.0,108800.0,0.001]
[1756652687920,0.77602664,108810.0,108800.0,0.001]
[1756652688123,0.18382352,108800.0,108790.0,0.00303]
[1756652688371,0.86038128,108800.0,108790.0,0.00303]
[1756652688591,0.86038128,108800.0,108790.0,0.00499]
[1756652688800,0.70102128,108800.0,108790.0,0.00499]
[1756652689002,0.86034128,108800.0,108790.0,0.00499]
[1756652689607,0.70102128,108800.0,108790.0,0.00699]
[1756652689786,0.86951366,108800.0,108790.0,0.00699]
[1756652690024,0.86951366,108800.0,108790.0,0.00503]
[1756652690437,0.86951366,108800.0,108790.0,0.00698]
[1756652691693,0.18382352,108800.0,108790.0,0.19082042]
[1756652692351,0.70102128,108800.0,108790.0,0.19082042]
[1756652692496,0.70102128,108800.0,108790.0,0.35002042]
[1756652694144,0.71025243,108810.0,108790.0,0.44300043]
[1756652694350,0.71025243,108810.0,108790.0,0.43997043]
[1756652694557,0.71025243,108810.0,108800.0,0.00318]
[1756652694841,0.71025243,108810.0,108800.0,0.00513]
[1756652695466,0.71125243,108810.0,108800.0,0.00513]
[1756652695646,0.19405467,108810.0,108800.0,0.00513]
[1756652695884,0.71025243,108810.0,108800.0,0.00513]
[1756652696835,0.71025243,108810.0,108800.0,0.18895352]
[1756652697240,0.71125243,108810.0,108800.0,0.18895352]
[1756652697466,0.71125243,108810.0,108800.0,0.00513]
[1756652698227,0.19405467,108810.0,108800.0,0.00513]
[1756652698434,0.71125243,108810.0,108800.0,0.00513]
[1756652698907,0.18480663,108810.0,108800.0,0.19125131]
[1756652699043,0.18480663,108810.0,108800.0,0.18895352]
[1756652699253,0.18480663,108810.0,108800.0,0.21658252]
[1756652699465,0.70200439,108810.0,108800.0,0.21658252]
[1756652700173,0.70200439,108810.0,108800.0,0.37258619]
[1756652700174,0.001,108810.0,108800.0,0.37258619]
[1756652701177,0.70098971,108820.0,108810.0,0.18380663]
[1756652701368,0.51719776,108820.0,108810.0,0.44267664]
[1756652701769,0.7009875,108820.0,108810.0,0.44267664]
[1756652702810,0.7009875,108820.0,108810.0,0.44467664]
[1756652702972,0.51719776,108820.0,108810.0,0.44467664]
[1756652703331,0.51719776,108820.0,108810.0,0.47230064]
[1756652703939,0.51719776,108820.0,108810.0,0.49323946]
[1756652704708,0.20230698,108830.0,108810.0,0.49323946]
[1756652704934,0.51719776,108820.0,108810.0,0.49005946]
[1756652705139,0.71950474,108830.0,108810.0,0.49005946]
[1756652705362,0.71950474,108830.0,108820.0,0.00318]
[1756652706000,0.71950474,108830.0,108820.0,0.00513]
[1756652706246,0.71950474,108830.0,108820.0,0.18891974]
[1756652706664,0.34459597,108840.0,108820.0,0.18891974]
[1756652706665,0.86187627,108840.0,108820.0,0.28189975]
[1756652706875,0.70117905,108840.0,108830.0,0.00318]
[1756652708041,0.70117905,108840.0,108830.0,0.18695285]
[1756652708254,0.70117905,108840.0,108830.0,0.21457285]
[1756652708482,0.70217905,108840.0,108830.0,0.21457285]
[1756652708709,0.70217905,108840.0,108830.0,0.21652285]
[1756652709604,0.70317905,108840.0,108830.0,0.21652285]
[1756652710295,0.70317905,108840.0,108830.0,0.37732285]
[1756652710732,0.71220438,108840.0,108830.0,0.37732285]
[1756652710942,0.19500662,108840.0,108830.0,0.37732285]
[1756652711171,0.71220438,108840.0,108830.0,0.21652285]
[1756652712422,0.52844587,108840.0,108830.0,0.21652285]
[1756652713289,0.71220184,108840.0,108830.0,0.21652285]
[1756652713494,0.71220184,108840.0,108830.0,0.19351]
[1756652715011,0.71220184,108840.0,108830.0,0.37728285]
[1756652715429,0.00222278,108840.0,108830.0,0.47026286]
[1756652715637,0.00222278,108840.0,108830.0,0.49120168]
[1756652716664,0.00122278,108840.0,108830.0,0.33044168]
[1756652716809,0.00022278,108840.0,108830.0,0.49132168]
[1756652717009,0.00122278,108840.0,108830.0,0.49132168]
[1756652717234,0.00122278,108840.0,108830.0,0.33044168]
[1756652717437,0.00122278,108840.0,108830.0,0.49132168]
[1756652717664,0.00022278,108840.0,108830.0,0.49132168]
[1756652718350,0.00022278,108840.0,108830.0,0.49332168]
[1756652721021,0.49843555,108860.0,108840.0,0.20467976]
[1756652721242,0.18419804,108860.0,108850.0,0.34653909]
[1756652721455,0.18419804,108860.0,108850.0,0.34950909]
[1756652721884,0.7013958,108860.0,108850.0,0.37712509]
[1756652722539,0.51767359,108860.0,108850.0,0.37712509]
[1756652722723,0.00047583,108860.0,108850.0,0.37712509]
[1756652722931,0.00147583,108860.0,108850.0,0.37712509]
[1756652723253,0.00047583,108860.0,108850.0,0.21628509]
[1756652723482,0.7023958,108860.0,108850.0,0.37712509]
[1756652723701,0.7023958,108860.0,108850.0,0.032546]
[1756652723921,0.7023958,108860.0,108850.0,0.193506]
[1756652724145,0.7023958,108860.0,108850.0,0.032546]
[1756652724346,0.7023958,108860.0,108850.0,0.19580273]
[1756652724594,0.7033958,108860.0,108850.0,0.37724509]
[1756652724807,0.7023958,108860.0,108850.0,0.39818391]
[1756652725026,0.7013958,108860.0,108850.0,0.39818391]
[1756652725237,0.7013958,108860.0,108850.0,0.21644482]
[1756652725487,0.18419804,108860.0,108850.0,0.21644482]
[1756652725665,0.18419804,108860.0,108850.0,0.40018391]
[1756652725863,0.7013958,108860.0,108850.0,0.40018391]
[1756652726102,0.7013958,108860.0,108850.0,0.21644482]
[1756652726996,0.7013958,108860.0,108850.0,0.40018391]
[1756652728345,0.51767359,108860.0,108850.0,0.40018391]
[1756652728728,0.7013958,108860.0,108850.0,0.40018391]
[1756652728947,0.7013958,108860.0,108850.0,0.21448482]
[1756652729325,0.7013958,108860.0,108850.0,0.39822391]
[1756652729534,0.7013958,108860.0,108850.0,0.40018391]
[1756652730527,0.7013958,108860.0,108850.0,0.23922391]
[1756652730747,0.7013958,108860.0,108850.0,0.21652482]
[1756652732692,0.7013958,108860.0,108850.0,0.05548482]
[1756652733055,0.87103063,108860.0,108850.0,0.16304]
[1756652733262,0.8624358,108860.0,108850.0,0.002]
[1756652733412,0.87103264,108860.0,108850.0,0.002]
[1756652734484,0.87203264,108860.0,108850.0,0.002]
[1756652734903,0.18373909,108850.0,108840.0,0.30277483]
[1756652735147,0.70093685,108850.0,108840.0,0.30574483]
[1756652735562,0.70093685,108850.0,108840.0,0.30770483]
[1756652736301,0.70953928,108850.0,108840.0,0.30970483]
[1756652740296,0.70954263,108850.0,108840.0,0.30970483]
[1756652740533,0.70954263,108850.0,108840.0,0.4934608]
[1756652740935,0.709543,108850.0,108840.0,0.4934608]
[1756652741547,0.52580391,108850.0,108840.0,0.4934608]
[1756652741747,0.19234524,108850.0,108840.0,0.4934608]
[1756652742144,0.00860615,108850.0,108840.0,0.4934608]
[1756652742358,0.18419804,108860.0,108840.0,0.4934608]
[1756652742727,0.72722097,108860.0,108850.0,0.00297]
[1756652743131,0.72722097,108860.0,108850.0,0.00493]
[1756652743570,0.72722097,108860.0,108850.0,0.18866909]
[1756652744021,0.21002321,108860.0,108850.0,0.18866909]
[1756652744237,0.72822097,108860.0,108850.0,0.18866909]
[1756652744692,0.21002321,108860.0,108850.0,0.18866909]
[1756652745075,0.72822097,108860.0,108850.0,0.00493]
[1756652745310,0.72822097,108860.0,108850.0,0.16597]
[1756652745755,0.72822097,108860.0,108850.0,0.34970909]
[1756652746306,0.72822097,108860.0,108850.0,0.16597]
[1756652746517,0.72822097,108860.0,108850.0,0.16589]
[1756652748025,0.21102321,108860.0,108850.0,0.34962909]
[1756652748377,0.72822097,108860.0,108850.0,0.34962909]
[1756652749155,0.71100419,108860.0,108850.0,0.34962909]
[1756652749360,0.72823716,108860.0,108850.0,0.34962909]
[1756652749566,0.2110394,108860.0,108850.0,0.34962909]
[1756652749765,0.72823716,108860.0,108850.0,0.34962909]
[1756652751027,0.7023958,108860.0,108850.0,0.34962909]
[1756652751238,0.71963039,108860.0,108850.0,0.34962909]
[1756652751793,0.71963039,108860.0,108850.0,0.18682882]
[1756652751998,0.71963145,108860.0,108850.0,0.37056791]
[1756652752463,0.00147583,108860.0,108850.0,0.46354792]
[1756652752669,0.00147583,108860.0,108850.0,0.46350792]
[1756652752877,0.00147583,108860.0,108850.0,0.49112092]
[1756652754154,0.00147583,108860.0,108850.0,0.49571392]
[1756652755749,0.00147583,108860.0,108850.0,0.56635392]
[1756652758767,0.00147583,108860.0,108850.0,0.56647392]
[1756652760560,0.7023958,108860.0,108850.0,0.22169483]
[1756652760781,0.7023958,108860.0,108850.0,0.56643392]
[1756652761415,0.18519804,108860.0,108850.0,0.56643392]
[1756652761631,0.7023958,108860.0,108850.0,0.21676483]
[1756652761850,0.7023958,108860.0,108850.0,0.37764483]
[1756652762474,0.7023958,108860.0,108850.0,0.21676483]
[1756652762680,0.7023958,108860.0,108850.0,0.05314482]
[1756652762883,0.7023958,108860.0,108850.0,0.21398482]
[1756652763083,0.7023958,108860.0,108850.0,0.18637182]
[1756652763760,0.7023958,108860.0,108850.0,0.18629182]
[1756652764355,0.7023958,108860.0,108850.0,0.19126182]
[1756652764717,0.7023958,108860.0,108850.0,0.18929182]
[1756652765863,0.7023958,108860.0,108850.0,0.19126182]
[1756652766073,0.7023958,108860.0,108850.0,0.18921182]
[1756652768111,0.7023958,108860.0,108850.0,0.19118182]
[1756652768819,0.7023958,108860.0,108850.0,0.18901182]
[1756652769574,0.18519804,108860.0,108850.0,0.18901182]
[1756652769803,0.7023958,108860.0,108850.0,0.18901182]
[1756652770023,0.18519804,108860.0,108850.0,0.18901182]
[1756652770238,0.7023958,108860.0,108850.0,0.19098182]
[1756652770710,0.7023958,108860.0,108850.0,0.37472091]
[1756652772458,0.18519804,108860.0,108850.0,0.37472091]
[1756652773898,0.18519804,108860.0,108850.0,0.19098182]
[1756652774490,0.18519804,108860.0,108850.0,0.03050182]
[1756652774707,0.18519804,108860.0,108850.0,0.19074182]
[1756652776009,0.18519804,108860.0,108850.0,0.37448091]
[1756652776195,0.18519804,108860.0,108850.0,0.19074182]
[1756652778193,0.85444644,108870.0,108850.0,0.19074182]
[1756652778385,0.18602285,108860.0,108850.0,0.19074182]
[1756652778532,0.18372221,108860.0,108850.0,0.19074182]
[1756652778745,0.18372221,108860.0,108850.0,0.37448091]
[1756652779500,0.33776868,108870.0,108860.0,0.02093882]
[1756652779697,0.33676868,108870.0,108860.0,0.02585882]
[1756652779897,0.17684868,108870.0,108860.0,0.02585882]
[1756652780099,0.17914932,108870.0,108860.0,0.02585882]
[1756652781885,0.18014932,108870.0,108860.0,0.02585882]
[1756652784567,0.17734932,108870.0,108860.0,0.02585882]
[1756652784776,0.17734932,108870.0,108860.0,0.18061882]
[1756652784946,0.69454708,108870.0,108860.0,0.18057882]
[1756652785150,0.17504868,108870.0,108860.0,0.18057882]
[1756652785365,0.69454708,108870.0,108860.0,0.18057882]
[1756652785562,0.69224644,108870.0,108860.0,0.18057882]
[1756652786143,0.17504868,108870.0,108860.0,0.18057882]
[1756652786368,0.69454708,108870.0,108860.0,0.18057882]
[1756652786611,0.69224644,108870.0,108860.0,0.18057882]
[1756652786793,0.69224644,108870.0,108860.0,0.18352882]
[1756652787590,0.69224644,108870.0,108860.0,0.18344882]
[1756652788166,0.17504868,108870.0,108860.0,0.18344882]
[1756652788368,0.69454708,108870.0,108860.0,0.18344882]
[1756652788574,0.17504868,108870.0,108860.0,0.36927103]
[1756652788777,0.69454708,108870.0,108860.0,0.36927103]
[1756652788981,0.69224644,108870.0,108860.0,0.36927103]
[1756652789387,0.17504868,108870.0,108860.0,0.36927103]
[1756652789499,0.17734932,108870.0,108860.0,0.36927103]
[1756652790146,0.69454708,108870.0,108860.0,0.18033882]
[1756652790351,0.48035111,108870.0,108860.0,0.18033882]
[1756652790557,0.70093426,108870.0,108860.0,0.18033882]
[1756652790837,0.19292176,108870.0,108860.0,0.18033882]
[1756652791037,0.19292176,108870.0,108860.0,0.18538882]
[1756652791447,0.20221982,108870.0,108860.0,0.18538882]
[1756652791582,0.20221982,108870.0,108860.0,0.36911103]
[1756652792486,0.00929806,108870.0,108860.0,0.36911103]
[1756652792834,8.737e-05,108870.0,108860.0,0.36911103]
[1756652793038,0.00238801,108870.0,108860.0,0.46209104]
[1756652793236,8.737e-05,108870.0,108860.0,0.46209104]
[1756652793696,8.737e-05,108870.0,108860.0,0.48970204]
[1756652794757,8.737e-05,108870.0,108860.0,0.48980204]
[1756652798103,1.366e-05,108870.0,108860.0,0.48980204]
[1756652798728,0.852641,108890.0,108860.0,0.48980204]
[1756652798955,0.1860201,108880.0,108870.0,0.00295]
[1756652799164,0.18371946,108880.0,108870.0,0.02388882]
[1756652799372,0.19288305,108880.0,108870.0,0.02598882]
[1756652800313,0.71008081,108880.0,108870.0,0.18510882]
[1756652801714,0.71208081,108880.0,108870.0,0.18510882]
[1756652802536,0.71208081,108880.0,108870.0,0.02598882]
[1756652802750,0.71208081,108880.0,108870.0,0.18304882]
[1756652802960,0.71208081,108880.0,108870.0,0.27812883]
[1756652803170,0.71208081,108880.0,108870.0,0.27808883]
[1756652803584,0.19488305,108880.0,108870.0,0.27808883]
[1756652803821,0.71208081,108880.0,108870.0,0.27808883]
[1756652804036,0.96935813,108880.0,108870.0,0.27808883]
[1756652805276,0.18370533,108870.0,108860.0,0.0001]
[1756652805496,0.95818041,108870.0,108860.0,0.0001]
[1756652805709,1.29818041,108870.0,108860.0,0.0001]
[1756652805938,1.82750995,108870.0,108860.0,1e-08]
[1756652806148,1.28168406,108870.0,108860.0,1e-08]
[1756652806568,1.82376512,108870.0,108860.0,1e-08]
[1756652806777,6.94043988,108870.0,108860.0,1e-08]
[1756652807000,0.52375597,108840.0,108830.0,0.0721143]
[1756652807218,0.52378974,108820.0,108810.0,0.0721143]
[1756652807441,1.19962101,108820.0,108810.0,0.07259013]
[1756652808089,1.19962101,108820.0,108810.0,0.00047583]
[1756652808537,1.19962101,108820.0,108810.0,0.00247583]
[1756652809451,1.29260102,108820.0,108810.0,0.00247583]
[1756652809665,1.42549122,108820.0,108810.0,0.00447583]
[1756652809889,1.20420102,108820.0,108810.0,0.00447583]
[1756652810092,1.36324102,108820.0,108810.0,0.00447583]
[1756652810301,1.36328102,108820.0,108810.0,0.00447583]
[1756652810708,1.36328102,108820.0,108810.0,0.00247583]
[1756652811037,1.20520102,108820.0,108810.0,0.00247583]
[1756652811247,1.36424102,108820.0,108810.0,0.00247583]
[1756652811452,1.20420102,108820.0,108810.0,0.00047583]
[1756652811664,1.36328102,108820.0,108810.0,0.00147583]
[1756652812260,0.70063169,108790.0,108780.0,0.00296]
[1756652812468,0.85979169,108790.0,108780.0,0.00304737]
[1756652813469,0.85979169,108790.0,108780.0,0.00501737]
[1756652814848,0.86915732,108790.0,108780.0,0.00501737]
[1756652815056,0.86915732,108790.0,108780.0,0.01101737]
[1756652815282,0.86640554,108790.0,108780.0,0.01101737]
[1756652815929,0.86628554,108790.0,108780.0,0.01101737]
[1756652817173,0.70724554,108790.0,108780.0,0.01101737]
[1756652817383,0.86624554,108790.0,108780.0,0.01101737]
[1756652818242,0.70724554,108790.0,108780.0,0.01101737]
[1756652818458,0.86620554,108790.0,108780.0,0.01101737]
[1756652821751,0.70724554,108790.0,108780.0,0.01101737]
[1756652822005,0.86612554,108790.0,108780.0,0.01101737]
[1756652822165,0.86600554,108790.0,108780.0,0.00963767]
[1756652822514,0.34921427,108790.0,108780.0,0.00963767]
[1756652822734,0.86600554,108790.0,108780.0,0.00963767]
[1756652823381,0.88306822,108790.0,108780.0,0.00963767]
[1756652824682,0.72430923,108790.0,108780.0,0.00963767]
[1756652824890,0.88294923,108790.0,108780.0,0.00963767]
[1756652825957,0.88492923,108790.0,108780.0,0.00963767]
[1756652826544,0.36813796,108790.0,108780.0,0.00963767]
[1756652826764,0.88492923,108790.0,108780.0,0.00963767]
[1756652828349,0.72628923,108790.0,108780.0,0.00963767]
[1756652828600,0.88298923,108790.0,108780.0,0.00963767]
[1756652829147,0.88496923,108790.0,108780.0,0.00963767]
[1756652830003,0.36817796,108790.0,108780.0,0.00963767]
[1756652830207,0.88496923,108790.0,108780.0,0.00963767]
[1756652831446,0.72430923,108790.0,108780.0,0.00963767]
[1756652831674,0.88282923,108790.0,108780.0,0.00963767]
[1756652831900,0.36603796,108790.0,108780.0,0.00963767]
[1756652832423,0.36801796,108790.0,108780.0,0.00963767]
[1756652833448,0.36603796,108790.0,108780.0,0.00963767]
[1756652833648,0.88480923,108790.0,108780.0,0.00963767]
[1756652833851,0.88480923,108790.0,108780.0,0.00766767]
[1756652834326,0.37472532,108790.0,108780.0,0.00963767]
[1756652834526,0.89993507,108790.0,108780.0,0.00963767]
[1756652835075,0.3831438,108790.0,108780.0,0.00963767]
[1756652835705,0.3831438,108790.0,108780.0,0.00766767]
[1756652835906,0.3831438,108790.0,108780.0,0.00608737]
[1756652836110,0.89993507,108790.0,108780.0,0.00608737]
[1756652836314,0.3831438,108790.0,108780.0,0.00904737]
[1756652836546,0.89993507,108790.0,108780.0,0.01101737]
[1756652838069,0.3831438,108790.0,108780.0,0.01101737]
[1756652838276,0.89993507,108790.0,108780.0,0.01101737]
[1756652838751,0.68447031,108790.0,108780.0,0.01101737]
[1756652838951,0.86831073,108790.0,108780.0,0.01101737]
[1756652840001,0.35151946,108790.0,108780.0,0.01101737]
[1756652840208,0.86831073,108790.0,108780.0,0.01101737]
[1756652841216,0.88509679,108790.0,108780.0,0.01101737]
[1756652843011,0.36830552,108790.0,108780.0,0.01101737]
[1756652843214,0.23286262,108790.0,108780.0,0.21581351]
[1756652843418,0.03223614,108790.0,108780.0,0.98390479]
[1756652843796,0.01506877,108790.0,108780.0,0.98390479]
[1756652844198,0.35134463,108810.0,108790.0,0.20476348]
[1756652844399,0.36643383,108810.0,108800.0,0.18912352]
[1756652844595,0.36643383,108810.0,108800.0,0.0053]
[1756652845023,0.36643362,108810.0,108800.0,0.0053]
[1756652845798,0.36643038,108810.0,108800.0,0.21006234]
[1756652846111,0.38339917,108810.0,108800.0,0.21006234]
[1756652846929,0.38339917,108810.0,108800.0,0.21106234]
[1756652847370,0.38339917,108810.0,108800.0,0.02723882]
[1756652848218,0.38327917,108810.0,108800.0,0.02723882]
[1756652848426,0.38327917,108810.0,108800.0,0.21106234]
[1756652848635,0.3832737,108810.0,108800.0,0.21106234]
[1756652849054,0.2250737,108810.0,108800.0,0.21106234]
[1756652849263,0.3832337,108810.0,108800.0,0.21106234]
[1756652849474,0.36626491,108810.0,108800.0,0.21106234]
[1756652850341,0.00862228,108810.0,108800.0,0.21106234]
[1756652850547,0.00862228,108810.0,108800.0,0.36918234]
[1756652851001,0.18378974,108820.0,108810.0,0.20474545]
[1756652851212,0.18378974,108820.0,108810.0,0.21004545]
[1756652851213,0.0150631,108820.0,108810.0,0.21004545]
[1756652851427,0.00860749,108820.0,108810.0,0.21004545]
[1756652851868,0.3675505,108830.0,108810.0,0.21004545]
[1756652852076,0.3675505,108830.0,108820.0,0.00325]
[1756652852278,0.37615476,108830.0,108820.0,0.0053]
[1756652853356,0.36696612,108830.0,108820.0,0.30539331]
[1756652853572,0.68183597,108840.0,108830.0,0.02093882]
[1756652853772,0.54880843,108840.0,108830.0,0.21001167]
[1756652853980,0.54880843,108840.0,108830.0,0.02623882]
[1756652854599,0.54880843,108840.0,108830.0,0.02523882]
[1756652854807,0.53235202,108840.0,108830.0,0.02523882]
[1756652855173,0.52375597,108840.0,108830.0,0.02523882]
[1756652855389,0.52375597,108840.0,108830.0,0.02723882]
[1756652855599,0.18375597,108840.0,108830.0,0.02723882]
[1756652857029,0.18375597,108840.0,108830.0,0.02923882]
[1756652858414,0.18573597,108840.0,108830.0,0.02923882]
[1756652858624,0.18375597,108840.0,108830.0,0.02923882]
[1756652859687,0.18573597,108840.0,108830.0,0.02393882]
[1756652861052,1.08397077,108840.0,108830.0,0.004]
[1756652861283,1.69374205,108840.0,108830.0,0.004]
[1756652861509,1.71903184,108840.0,108830.0,0.004]
[1756652861738,0.18377285,108830.0,108820.0,8.737e-05]
[1756652861980,0.18382352,108800.0,108790.0,0.0721143]
[1756652862247,0.86051479,108800.0,108790.0,0.07225708]
[1756652862689,0.18382352,108800.0,108790.0,0.07755708]
[1756652862930,0.34174352,108800.0,108790.0,0.0984959]
[1756652863356,0.34174352,108800.0,108790.0,0.0263816]
[1756652864475,0.34174352,108800.0,108790.0,0.0273816]
[1756652864737,0.34174352,108800.0,108790.0,0.0283816]
[1756652864964,0.18382352,108800.0,108790.0,0.0283816]
[1756652866317,0.1838211,108810.0,108800.0,0.02093882]
[1756652866541,0.1838211,108810.0,108800.0,0.02623882]
[1756652866787,0.35088714,108820.0,108800.0,0.81983362]
[1756652867000,0.35088714,108820.0,108800.0,0.29979235]
[1756652867161,0.35088714,108820.0,108810.0,0.02418882]
[1756652867314,0.35088714,108820.0,108810.0,0.02623882]
[1756652868582,0.35188714,108820.0,108810.0,0.02623882]
[1756652869001,0.35486714,108820.0,108810.0,0.02623882]
[1756652869622,0.87165841,108820.0,108810.0,0.02093882]
[1756652870269,0.87303841,108820.0,108810.0,0.02093882]
[1756652870649,0.35486714,108820.0,108810.0,0.02093882]
[1756652870856,0.87165841,108820.0,108810.0,0.02093882]
[1756652871429,0.87303841,108820.0,108810.0,0.02093882]
[1756652871847,0.18382352,108800.0,108790.0,0.1820016]
[1756652872199,0.18382352,108800.0,108790.0,0.27498161]
[1756652872511,0.18382352,108800.0,108790.0,0.27703161]
[1756652873017,0.18382352,108800.0,108790.0,0.11911161]
[1756652873223,0.18382352,108800.0,108790.0,0.27699161]
[1756652873438,0.18382352,108800.0,108790.0,0.27695161]
[1756652873647,0.18382352,108800.0,108790.0,0.27691161]
[1756652874490,0.18382352,108800.0,108790.0,0.11911161]
[1756652874728,0.18382352,108800.0,108790.0,0.27691161]
[1756652874938,0.18382352,108800.0,108790.0,0.27791161]
[1756652875150,0.18382352,108800.0,108790.0,0.27891161]
[1756652875364,0.18580352,108800.0,108790.0,0.27887161]
[1756652875791,0.18580352,108800.0,108790.0,0.12111161]
[1756652876023,0.18580352,108800.0,108790.0,0.27887161]
[1756652877576,0.18580352,108800.0,108790.0,0.27382161]
[1756652877801,0.70259479,108800.0,108790.0,0.1807616]
[1756652878033,0.86165479,108800.0,108790.0,0.00214278]
[1756652878690,1.20165479,108800.0,108790.0,0.00214278]
[1756652878906,1.28995111,108800.0,108790.0,0.00214278]
[1756652879118,1.20165479,108800.0,108790.0,0.00214278]
[1756652879740,1.20165479,108800.0,108790.0,0.00114278]
[1756652879978,1.2956348,108800.0,108790.0,0.00114278]
[1756652880605,1.2946348,108800.0,108790.0,0.00114278]
[1756652880818,1.2946348,108800.0,108790.0,0.00014278]
[1756652881023,1.2956348,108800.0,108790.0,0.00014278]
[1756652881442,1.29426141,108800.0,108790.0,0.00014278]
[1756652881652,1.29288545,108800.0,108790.0,0.00014278]
[1756652882078,1.29388545,108800.0,108790.0,0.00014278]
[1756652883361,1.81067672,108800.0,108790.0,0.00014278]